bitfinex/quotes_ETHUSD_20220308
["timestamp","ask_amount","ask_price","bid_price","bid_amount"]
[1646765294303,0.3816,2585.9,2584.5,1.93524]
[1646765294504,3.0,2584.9,2584.1,0.01562171]
[1646765294704,0.3816,2584.8,2584.1,0.01562171]
[1646765295753,0.3816,2584.8,2583.4,1.64619821]
[1646765295953,0.3816,2584.6,2583.4,1.64619821]
[1646765296153,3.5,2584.7,2583.3,7.36]
[1646765296154,0.3816,2584.4,2583.5,1.93605]
[1646765296354,0.3816,2584.4,2583.3,7.36]
[1646765296553,0.3816,2584.4,2583.2,0.22644609]
[1646765296754,18.13,2584.6,2583.2,0.22644609]
[1646765296755,0.3816,2584.2,2583.2,0.22644609]
[1646765296956,0.3816,2584.0,2583.2,0.22644609]
[1646765297153,0.3816,2583.8,2583.2,0.22644609]
[1646765298256,3.8816,2583.7,2582.8,1.93888497]
[1646765298456,3.8816,2583.7,2582.8,0.00240497]
[1646765298655,3.8816,2583.7,2582.6,9.29666]
[1646765299311,3.8816,2583.6,2582.6,10.02222039]
[1646765299500,1.35009,2583.6,2582.7,0.00240497]
[1646765299700,1.35009,2583.6,2582.6,2.66222039]
[1646765299900,0.3816,2583.6,2582.6,2.66222039]
[1646765300300,0.3816,2583.5,2582.6,2.66222039]
[1646765300512,0.3816,2583.9,2582.7,0.00240497]
[1646765300708,0.3816,2583.9,2583.0,0.6933229]
[1646765301107,0.3816,2583.7,2582.7,0.00240497]
[1646765301313,0.3816,2583.5,2582.5,0.00240497]
[1646765301511,0.3816,2583.3,2582.6,0.3]
[1646765301711,0.33752113,2583.7,2582.5,0.00240497]
[1646765301712,3.8816,2583.2,2582.5,0.00240497]
[1646765301909,0.3816,2583.2,2582.4,1.93691]
[1646765302108,3.8816,2583.1,2582.5,0.72665368]
[1646765302309,3.8816,2583.1,2582.5,0.72905865]
[1646765302310,0.3816,2583.1,2582.5,0.72905865]
[1646765302509,0.3816,2583.1,2582.5,0.72665368]
[1646765303148,3.5,2583.3,2582.5,1.02665368]
[1646765303346,0.03752113,2583.7,2582.5,0.15]
[1646765303547,3.53752113,2583.7,2582.5,0.15]
[1646765303745,3.53752113,2583.7,2582.3,0.00240497]
[1646765303945,0.00448647,2583.0,2582.6,0.00448726]
[1646765304751,0.38608647,2583.0,2582.6,0.00448726]
[1646765304953,0.3816,2582.9,2582.6,0.00448726]
[1646765305151,0.3816,2582.9,2582.6,0.00897447]
[1646765305152,0.38608658,2582.9,2582.6,0.00897447]
[1646765305355,0.38608658,2582.9,2582.6,0.00448721]
[1646765305756,0.3816,2582.7,2582.1,0.00062297]
[1646765305952,0.3816,2582.7,2582.6,0.96871]
[1646765306353,1.35931321,2582.9,2582.6,0.97319718]
[1646765306551,1.35931321,2582.9,2582.6,0.00448718]
[1646765306552,3.5,2582.8,2582.6,0.00448718]
[1646765306811,0.00448663,2582.9,2582.6,0.00448718]
[1646765307097,0.00448663,2582.9,2582.6,0.97320718]
[1646765307497,0.38608663,2582.9,2582.6,0.97320718]
[1646765307697,0.38608663,2582.9,2582.4,1.93738]
[1646765307698,0.3816,2582.9,2582.4,1.93738]
[1646765308096,0.03743157,2583.0,2582.4,1.93738]
[1646765308300,0.03743157,2583.0,2582.6,0.96869]
[1646765308702,0.00381426,2582.8,2582.6,1.26869]
[1646765308902,0.00381426,2582.8,2582.6,0.96869]
[1646765309106,0.00381426,2582.8,2582.5,0.00381475]
[1646765309303,3.87284583,2583.0,2582.5,0.00381475]
[1646765309905,3.87284583,2583.0,2582.4,2.23738]
[1646765310103,3.87284583,2583.0,2582.2,0.00236973]
[1646765310104,4.84155583,2583.0,2582.2,0.00236973]
[1646765310302,5.84155583,2583.0,2582.1,1.93747]
[1646765310550,3.0,2582.9,2582.1,1.93747]
[1646765310754,0.37284583,2582.7,2581.9,1.93764]
[1646765310954,6.4067516,2582.8,2581.6,0.00236973]
[1646765310955,3.37284583,2582.5,2581.6,0.00236973]
[1646765311152,3.37284583,2582.5,2581.3,0.00236973]
[1646765311153,0.37284583,2582.3,2581.3,0.00236973]
[1646765311350,3.5,2582.2,2581.5,1.93796]
[1646765312553,0.96898,2582.3,2581.7,0.97343751]
[1646765312751,4.20890597,2582.8,2581.7,1.57343751]
[1646765312752,1.20890597,2582.8,2581.7,1.57343751]
[1646765312952,1.20890597,2582.8,2581.7,0.60444751]
[1646765313151,1.20890597,2582.8,2581.7,0.60681724]
[1646765313352,3.5,2582.7,2581.7,0.30681724]
[1646765313555,3.5,2582.7,2581.7,0.00681724]
[1646765313556,12.0116,2582.6,2581.7,0.00681724]
[1646765313752,12.0116,2582.6,2582.1,0.00444705]
[1646765313753,0.3816,2582.4,2582.1,0.00444705]
[1646765313951,0.3816,2582.3,2582.1,0.00444705]
[1646765314152,3.0,2582.5,2582.1,4.705e-05]
[1646765314153,15.5116,2582.2,2582.1,4.705e-05]
[1646765314400,12.0116,2582.0,2581.7,0.00013793]
[1646765314605,0.3816,2581.8,2580.8,0.00236973]
[1646765315003,1.4305,2581.8,2580.8,0.00236973]
[1646765315203,1.4305,2581.8,2581.3,0.96922]
[1646765315204,16.5605,2581.8,2581.3,0.96922]
[1646765315402,0.3816,2581.5,2581.3,0.96922]
[1646765315604,1.3509032,2581.5,2581.3,0.96922]
[1646765315804,12.9809032,2581.5,2580.8,0.00236973]
[1646765316005,12.9809032,2581.5,2580.6,1.9388]
[1646765316208,16.4809032,2581.5,2580.6,1.9388]
[1646765316605,16.4809032,2581.5,2580.6,2.2388]
[1646765316807,16.4809032,2581.5,2580.5,1.93892]
[1646765316808,12.98103,2581.3,2580.5,1.93892]
[1646765317013,12.98103,2581.3,2580.4,0.00799312]
[1646765317014,0.3816,2580.6,2580.4,0.00799312]
[1646765317307,0.3816,2580.6,2580.0,0.0561067]
[1646765317308,18.0116,2580.5,2580.0,0.0561067]
[1646765317506,0.3816,2580.3,2580.0,0.0561067]
[1646765317708,18.0116,2580.2,2579.9,1.074e-05]
[1646765317906,1.3816,2580.4,2579.7,1.0266258]
[1646765318154,4.0,2580.9,2579.9,1.93934]
[1646765318555,4.0,2580.9,2579.9,2.24377092]
[1646765318759,4.46969,2580.8,2579.9,0.30443092]
[1646765319055,1.93965,2580.3,2579.9,0.00443092]
[1646765319456,2.9094039,2580.3,2579.9,0.00443092]
[1646765319756,0.96961,2580.5,2579.9,1.26966]
[1646765319957,0.3816,2580.4,2579.9,1.26966]
[1646765320354,0.96961,2580.5,2579.9,1.26966]
[1646765320355,4.46961,2580.5,2579.9,1.26966]
[1646765320556,3.7472952,2580.5,2580.1,0.00292983]
[1646765320758,2.04096606,2580.5,2580.1,0.00292983]
[1646765320956,11.63,2580.4,2580.1,0.00292983]
[1646765321156,12.0116,2580.4,2580.1,0.00292983]
[1646765321850,12.0116,2580.2,2580.1,0.00292983]
[1646765322039,12.0116,2580.2,2580.1,0.0041191]
[1646765322040,18.5116,2580.2,2580.1,0.0041191]
[1646765322240,18.5116,2580.2,2580.1,1.91e-05]
[1646765322241,19.9796,2580.2,2580.1,1.91e-05]
[1646765322444,12.0116,2579.8,2579.6,7.577e-05]
[1646765322644,15.5116,2579.7,2579.6,7.577e-05]
[1646765323044,16.5116,2579.7,2579.6,7.577e-05]
[1646765323244,12.0116,2579.4,2579.3,0.00279428]
[1646765323448,12.0116,2579.4,2578.7,0.0195469]
[1646765323449,6.3816,2579.1,2578.3,1.01601888]
[1646765323647,11.63,2578.6,2578.2,0.0243459]
[1646765323846,3.0,2578.7,2578.2,0.03845114]
[1646765323847,12.0116,2578.4,2578.2,0.03845114]
[1646765324245,13.0116,2578.4,2578.2,0.03845114]
[1646765324446,4.3816,2578.1,2577.8,1.65008462]
[1646765324646,4.0,2578.1,2577.8,0.08943952]
[1646765325348,14.5420768,2577.9,2577.8,0.0030614]
[1646765325550,0.8083,2578.1,2577.1,0.0061228]
[1646765325551,11.6269386,2577.6,2577.1,0.0061228]
[1646765325752,1.96830089,2578.1,2577.1,0.0061228]
[1646765325753,0.19673506,2577.7,2577.1,0.0122456]
[1646765325954,3.5,2577.9,2577.2,0.04035807]
[1646765326153,0.3,2577.9,2577.2,0.04035807]
[1646765326354,11.63,2577.7,2577.1,0.0122456]
[1646765326560,15.13,2577.6,2577.1,0.0122456]
[1646765326754,3.0,2577.5,2577.1,0.0122456]
[1646765326955,3.0,2577.5,2577.4,0.00414081]
[1646765326956,2.91325,2577.5,2577.4,0.00414081]
[1646765327156,3.9708027,2577.7,2577.4,0.00414081]
[1646765327354,0.13819997,2578.1,2577.4,0.00414081]
[1646765327756,1.91856897,2578.6,2577.4,0.01638641]
[1646765328056,1.91856897,2578.6,2577.4,0.98907145]
[1646765328057,1.2118,2578.6,2577.4,0.98907145]
[1646765328254,8.4704028,2578.7,2578.4,0.97032]
[1646765328457,4.9704028,2578.7,2578.4,0.97032]
[1646765328654,3.9704028,2578.7,2578.4,0.97032]
[1646765329058,3.0,2578.7,2578.4,0.97032]
[1646765329334,0.38917108,2579.3,2578.4,0.97464189]
[1646765329530,0.21220545,2579.3,2578.4,0.97464189]
[1646765330133,0.21220545,2579.3,2579.0,1.75057999]
[1646765330531,5.13182555,2579.8,2579.0,1.75057999]
[1646765330532,3.0,2579.8,2579.0,1.75057999]
[1646765331135,0.03438445,2580.2,2579.0,1.75057999]
[1646765331335,0.03438445,2580.2,2579.0,1.75293503]
[1646765331538,0.03438445,2580.2,2579.0,2.05293503]
[1646765331738,0.00122328,2579.9,2579.3,0.96963]
[1646765331935,2.12223,2580.6,2579.3,0.96963]
[1646765331936,3.5,2580.5,2579.3,0.96963]
[1646765332137,0.96976,2580.2,2579.3,0.97198504]
[1646765332537,0.96976,2580.2,2579.6,0.83558834]
[1646765332538,0.98273717,2580.2,2579.6,0.83558834]
[1646765332736,0.98273717,2580.2,2579.6,1.80549834]
[1646765333159,0.9699427,2580.0,2579.6,1.80549834]
[1646765333357,0.96976,2580.2,2579.6,2.10549834]
[1646765333959,0.96976,2580.2,2579.6,0.96991]
[1646765334159,1.9397426,2580.1,2579.6,0.96991]
[1646765334361,1.93991,2580.0,2579.5,1.93981]
[1646765335160,0.9698614,2579.9,2579.5,2.86436702]
[1646765335363,0.9698614,2579.9,2579.6,0.00440939]
[1646765335558,1.9397514,2579.9,2579.6,0.00440939]
[1646765336572,15.5116,2579.8,2579.6,0.97430939]
[1646765336830,13.0116,2579.8,2579.6,9.39e-06]
[1646765337033,18.5116,2579.7,2579.6,9.39e-06]
[1646765337228,16.52368901,2579.7,2579.6,9.39e-06]
[1646765337427,13.02368901,2579.7,2579.6,9.39e-06]
[1646765337931,12.0116,2579.4,2578.8,0.00235504]
[1646765338128,12.0116,2579.4,2578.3,1.94292504]
[1646765338129,12.0116,2579.2,2578.3,1.94292504]
[1646765338330,3.5,2579.3,2578.3,1.94057]
[1646765338331,12.0116,2579.0,2578.3,1.94057]
[1646765338732,16.5116,2579.0,2578.3,1.94057]
[1646765338934,16.5116,2579.0,2577.9,0.00235504]
[1646765339136,11.63,2578.4,2577.8,0.0122456]
[1646765339535,13.5711509,2578.5,2578.0,0.97048]
[1646765339933,1.9411509,2578.5,2578.0,0.97048]
[1646765340134,2.9116008,2578.5,2578.0,0.97489124]
[1646765340580,0.97056,2578.3,2578.0,0.97489124]
[1646765340767,12.46462311,2578.3,2578.0,0.97489124]
[1646765340969,12.46462311,2578.3,2577.8,0.0122456]
[1646765340970,11.63,2577.9,2577.8,0.0122456]
[1646765341366,0.9706515,2578.0,2577.8,0.0122456]
[1646765341567,12.60067,2577.9,2577.8,0.0122456]
[1646765341965,0.97067,2577.9,2577.8,0.0122456]
[1646765342169,0.61974096,2578.5,2577.8,0.0122456]
[1646765342170,1.94104,2578.5,2577.8,0.0122456]
[1646765342366,4.31292318,2579.0,2577.8,0.0122456]
[1646765342367,1.1742,2578.7,2577.8,0.0122456]
[1646765342566,11.63,2578.8,2577.9,0.97035]
[1646765342767,11.63,2578.5,2577.9,0.97035]
[1646765342968,11.63,2578.3,2577.8,0.0122456]
[1646765343468,1.94113,2578.4,2577.8,0.0122456]
[1646765344067,2.31239997,2579.2,2577.8,2.2529556]
[1646765344068,1.31239997,2579.2,2577.8,2.2529556]
[1646765344314,3.25286997,2579.2,2577.8,2.5529556]
[1646765344510,3.25286997,2579.2,2578.8,0.87230983]
[1646765344511,11.63,2579.1,2578.8,0.87230983]
[1646765344715,0.07074554,2579.7,2578.8,0.87230983]
[1646765345112,0.00440886,2579.5,2578.8,0.87230983]
[1646765345713,0.00440886,2579.5,2578.9,1.43795]
[1646765345914,0.07074554,2579.7,2578.9,1.73795]
[1646765346112,0.03548566,2579.7,2578.9,1.73795]
[1646765346314,1.2145,2580.7,2579.0,0.3816]
[1646765346514,11.63,2580.8,2579.2,0.3816]
[1646765346716,12.0116,2580.6,2579.3,0.468]
[1646765346916,12.0116,2580.4,2579.3,0.00235504]
[1646765347115,11.63,2580.2,2579.3,0.3]
[1646765347320,3.5,2580.1,2579.4,0.00235504]
[1646765347513,3.5,2580.1,2579.0,0.00235504]
[1646765347514,0.00152311,2580.1,2579.0,0.00235504]
[1646765347718,0.00152311,2580.1,2579.9,0.6958149]
[1646765348583,0.00304622,2580.1,2579.9,0.6958149]
[1646765348782,0.00152311,2580.1,2579.9,0.6958149]
[1646765349783,0.00152311,2580.1,2579.5,0.96965]
[1646765349784,0.00572463,2580.1,2579.5,0.96965]
[1646765349987,0.00420152,2580.1,2579.5,0.96965]
[1646765350987,0.00420174,2579.9,2579.8,0.82998572]
[1646765352113,0.00420174,2579.9,2579.5,0.96965]
[1646765352309,0.00420169,2580.0,2579.3,1.26976]
[1646765352514,0.00420169,2580.0,2579.3,0.96976]
[1646765352710,0.00420169,2580.0,2579.3,1.26976]
[1646765353110,0.00420169,2580.0,2579.7,0.66276328]
[1646765353512,0.00412382,2579.8,2579.7,0.96276328]
[1646765354511,0.00412382,2579.8,2579.7,1.43076328]
[1646765354710,0.00379687,2579.9,2579.7,3.36958328]
[1646765355114,0.00379687,2579.9,2579.8,0.3]
[1646765355960,0.00379682,2579.9,2579.8,0.3]
[1646765356165,0.00379682,2579.9,2579.7,1.93882]
[1646765356361,0.00379682,2579.9,2579.3,0.00235504]
[1646765356362,0.04060136,2579.8,2579.3,0.00235504]
[1646765356562,0.79700136,2579.8,2579.2,1.93933]
[1646765356763,0.79700136,2579.8,2578.9,0.00235504]
[1646765356764,11.63,2579.6,2578.9,0.00235504]
[1646765356965,11.63,2579.6,2578.6,0.00235504]
[1646765356966,12.0116,2579.4,2578.6,0.00235504]
[1646765357162,12.0116,2579.2,2578.4,0.00235504]
[1646765357361,12.0116,2579.0,2578.0,0.01531068]
[1646765357561,12.9820031,2578.8,2578.0,0.01531068]
[1646765357765,12.60044,2578.7,2578.0,0.01531068]
[1646765358164,0.97044,2578.7,2578.0,0.01531068]
[1646765358363,0.97044,2578.7,2578.0,0.03068236]
[1646765358664,0.97044,2578.7,2578.0,0.01537168]
[1646765359062,4.47044,2578.7,2578.0,0.01537168]
[1646765359332,0.00768123,2579.5,2578.1,0.36019143]
[1646765359526,0.00768123,2579.5,2578.2,0.00235504]
[1646765359527,3.5,2579.2,2578.2,0.00235504]
[1646765359727,3.5,2579.2,2578.1,0.36019143]
[1646765359728,3.8816,2579.2,2578.1,0.36019143]
[1646765359926,3.8816,2579.0,2578.0,1.94037]
[1646765360128,0.9703142,2578.9,2578.1,0.00235504]
[1646765360331,15.5116,2578.8,2577.9,0.00384301]
[1646765360531,15.5116,2578.8,2577.9,0.0076754]
[1646765360733,15.5116,2578.8,2578.0,0.01532892]
[1646765361534,16.5116,2578.8,2578.0,0.01532892]
[1646765361933,12.0116,2578.7,2577.9,0.01915461]
[1646765362134,12.0116,2578.5,2577.9,0.01915461]
[1646765362335,0.97049,2578.4,2577.9,0.01915461]
[1646765362536,0.13819997,2579.0,2577.9,0.01915461]
[1646765362736,3.63819997,2579.0,2577.9,0.01915461]
[1646765363059,0.13819997,2579.0,2577.9,0.02298545]
[1646765363259,1.13819997,2579.0,2577.9,0.00383084]
[1646765363459,0.13819997,2579.0,2577.9,1.94441084]
[1646765363658,0.13819997,2579.0,2578.0,0.3518762]
[1646765364058,0.03907046,2579.1,2578.0,0.3518762]
[1646765364258,0.03907046,2579.1,2578.3,0.75466581]
[1646765364458,0.03907046,2579.1,2578.4,0.35182453]
[1646765364859,0.5,2578.6,2578.4,0.35182453]
[1646765365159,0.03907046,2579.1,2578.4,0.35182453]
[1646765365566,0.03907046,2579.1,2578.4,1.32181453]
[1646765365763,0.03907046,2579.1,2578.7,0.85392306]
[1646765366067,0.0038303,2579.5,2578.4,0.3]
[1646765366264,0.0038303,2579.5,2578.5,0.34797382]
[1646765366813,0.00383054,2579.5,2578.4,0.3]
[1646765367011,0.00383054,2579.5,2578.7,0.96992]
[1646765367813,0.00766094,2579.5,2578.7,0.96992]
[1646765368018,0.0038304,2579.5,2578.5,1.93984]
[1646765368415,12.0116,2579.4,2578.5,1.93984]
[1646765368615,12.98169,2579.4,2578.3,0.97256504]
[1646765368816,0.3,2579.0,2578.3,0.97256504]
[1646765369016,12.0116,2578.9,2578.1,0.00235504]
[1646765369220,12.0116,2578.9,2578.0,0.01533045]
[1646765369618,11.63,2578.7,2578.0,0.98565045]
[1646765369817,0.97036,2578.8,2578.0,0.98565045]
[1646765370018,1.9405493,2578.9,2578.0,0.98565045]
[1646765370422,1.9405493,2578.9,2578.0,0.97032]
[1646765370871,1.9405493,2578.9,2577.9,0.0191613]
[1646765370872,11.63,2578.8,2577.9,0.0191613]
[1646765371068,0.9702993,2578.9,2577.9,0.0191613]
[1646765371069,11.63,2578.5,2577.9,0.0191613]
[1646765371660,11.63,2578.5,2577.9,0.01916143]
[1646765371661,12.63,2578.5,2577.9,0.01916143]
[1646765371862,11.63,2578.5,2577.9,0.01916143]
[1646765372062,13.57106,2578.4,2577.9,0.01916143]
[1646765372264,11.63,2578.3,2577.9,0.01916143]
[1646765372462,2.8615012,2578.4,2577.9,0.01916143]
[1646765372663,1.9409612,2578.4,2577.9,0.01916143]
[1646765372862,1.9409612,2578.4,2577.9,0.00383224]
[1646765373262,0.9704412,2578.4,2577.9,0.00383224]
[1646765373860,0.9704412,2578.4,2577.9,0.00766449]
[1646765374061,1.3,2579.0,2577.9,0.00766449]
[1646765374062,5.9026722,2579.1,2577.9,5.44432225]
[1646765374309,2.95017807,2579.4,2577.9,5.44432225]
[1646765374310,0.03910807,2579.4,2577.9,5.82592225]
[1646765374510,0.03910807,2579.4,2578.1,0.3816]
[1646765374710,0.03910807,2579.4,2578.2,7.26145504]
[1646765374912,0.03910807,2579.4,2578.2,3.7591]
[1646765375210,0.03910807,2579.4,2578.7,0.71987216]
[1646765375510,0.03910807,2579.4,2578.4,0.96984]
[1646765375714,0.00383009,2579.5,2578.4,0.96984]
[1646765376120,0.00383009,2579.5,2578.5,3.5]
[1646765376316,0.00508976,2579.5,2578.5,3.5]
[1646765376516,0.00508976,2579.5,2578.5,3.968]
[1646765376517,0.00125967,2579.5,2578.5,3.968]
[1646765376715,0.00125967,2579.5,2578.7,0.96988]
[1646765376915,0.00125967,2579.5,2578.7,0.6]
[1646765377115,0.00125967,2579.5,2578.7,0.3]
[1646765377418,0.00125967,2579.5,2578.8,0.82643033]
[1646765377716,0.00383445,2579.5,2578.7,0.3]
[1646765377919,0.00383445,2579.5,2578.6,0.3]
[1646765378861,0.00401782,2579.5,2578.9,0.76823227]
[1646765379461,0.00401782,2579.5,2578.9,3.00779227]
[1646765379860,0.00401782,2579.5,2578.9,3.30779227]
[1646765380063,0.00803573,2579.5,2578.9,3.30779227]
[1646765380264,0.00401791,2579.5,2579.0,0.96973]
[1646765380663,0.00401791,2579.5,2579.0,1.26973]
[1646765381370,0.00400727,2579.5,2579.0,1.26973]
[1646765381563,0.03874907,2579.4,2579.0,1.26973]
[1646765382713,0.03874907,2579.4,2578.7,0.00235504]
[1646765382916,0.03874907,2579.4,2578.1,2.30306018]
[1646765382917,0.03874907,2579.4,2578.3,0.00235504]
[1646765383114,0.03874907,2579.4,2578.1,0.00235504]
[1646765383115,11.63,2579.3,2578.1,0.00235504]
[1646765383315,0.9700945,2579.1,2578.1,0.00235504]
[1646765383617,0.42034907,2579.4,2578.5,0.85046332]
[1646765383815,0.03874907,2579.4,2578.5,1.82045332]
[1646765384315,0.03874907,2579.4,2578.6,0.3]
[1646765384614,0.03874907,2579.4,2578.6,0.768]
[1646765384813,0.03874907,2579.4,2579.3,0.69895001]
[1646765385573,0.03874907,2579.4,2578.9,5.0]
[1646765385763,1.07328004,2579.2,2578.9,5.0]
[1646765385963,0.03874907,2579.4,2579.0,4.5]
[1646765386163,0.03874907,2579.4,2579.0,6.43949]
[1646765386462,0.00383376,2579.5,2579.2,5.5]
[1646765386865,0.00383376,2579.5,2579.3,0.85306692]
[1646765387066,1.15771108,2580.4,2580.2,0.8201329]
[1646765387265,6.1318,2581.3,2579.6,1.26939]
[1646765387266,1.66090457,2581.1,2579.6,1.26939]
[1646765387464,11.63,2580.9,2579.7,0.38748777]
[1646765387768,12.0116,2580.3,2578.9,5.3878]
[1646765387964,0.3816,2580.1,2579.0,0.38530078]
[1646765388164,1.15767279,2580.0,2579.2,0.65366885]
[1646765388364,1.15767279,2579.9,2579.2,0.65366885]
[1646765388564,5.4394766,2580.4,2579.2,0.65366885]
[1646765388766,1.15713341,2580.3,2579.3,0.38534883]
[1646765389168,1.15713341,2580.3,2579.3,0.68534883]
[1646765389428,0.96962,2580.6,2579.4,2.70599883]
[1646765389429,3.5,2580.6,2579.4,2.70599883]
[1646765389727,1.1445,2580.9,2580.0,0.76185373]
[1646765389728,1.15663049,2580.5,2580.0,0.76185373]
[1646765389927,1.5261,2580.9,2580.0,0.76185373]
[1646765390129,1.15582002,2580.8,2580.0,0.76185373]
[1646765390530,1.15582002,2580.8,2579.5,0.3816]
[1646765390733,0.00125826,2580.6,2579.6,0.38513137]
[1646765390932,1.15707828,2580.6,2579.6,0.38513137]
[1646765391134,1.53867828,2580.6,2579.6,0.38513137]
[1646765391333,0.0388287,2580.3,2579.6,0.38513137]
[1646765391938,0.00415645,2580.2,2579.6,0.38513137]
[1646765392339,0.00415645,2580.2,2579.6,1.23283665]
[1646765392540,0.00415645,2580.2,2579.6,0.84770528]
[1646765393158,0.00353394,2580.0,2579.6,0.84770528]
[1646765394360,0.00353394,2579.9,2579.6,0.84770528]
[1646765394757,0.00353394,2579.9,2579.7,0.38506966]
[1646765394959,0.00353394,2579.9,2579.5,0.3]
[1646765395159,0.00353394,2579.9,2579.2,0.47029593]
[1646765395358,0.00353394,2579.9,2579.2,0.468]
[1646765395562,0.00353394,2579.9,2579.3,0.38512281]
[1646765395563,0.00706788,2579.9,2579.3,0.38512281]
[1646765395761,0.00353394,2579.9,2579.3,0.38512281]
[1646765396162,0.004177,2579.6,2579.0,0.74564662]
[1646765396363,0.004177,2579.6,2579.1,0.38526389]
[1646765397212,0.004177,2579.6,2579.1,0.68526389]
[1646765397412,0.004177,2579.6,2579.2,0.38526389]
[1646765397814,0.004177,2579.6,2579.0,1.04335069]
[1646765398016,0.00802896,2579.6,2579.1,0.38532152]
[1646765398216,0.00802896,2579.6,2579.0,0.38532152]
[1646765398217,12.01962896,2579.6,2579.0,0.38532152]
[1646765398415,12.01962896,2579.6,2578.9,5.0]
[1646765398416,16.55302896,2579.6,2578.9,5.0]
[1646765398618,12.0116,2579.4,2578.9,5.0]
[1646765398819,12.0116,2579.2,2578.9,5.0]
[1646765399818,15.8927809,2579.2,2578.9,5.0]
[1646765400218,13.9521509,2579.2,2578.9,5.0]
[1646765400417,14.9223109,2579.2,2578.9,5.0]
[1646765400665,15.10856918,2579.2,2578.9,5.0]
[1646765400867,12.98182,2579.0,2578.9,5.0]
[1646765401473,1.35182,2579.0,2578.9,5.0]
[1646765401665,1.94045,2579.4,2578.9,5.0]
[1646765401666,1.18834095,2579.5,2578.9,5.0]
[1646765401866,0.03595496,2579.5,2578.9,5.0]
[1646765402067,1.00597496,2579.5,2578.9,5.0]
[1646765402270,0.9700142,2579.4,2578.9,5.0]
[1646765403468,12.0116,2579.2,2578.9,5.0]
[1646765403666,15.5116,2579.2,2578.9,5.0]
[1646765403866,16.5116,2579.2,2578.9,5.0]
[1646765404067,0.3,2579.3,2578.9,5.0]
[1646765404311,2.14036973,2579.5,2578.9,5.0]
[1646765404312,0.33595496,2579.5,2578.9,5.0]
[1646765404512,0.03595496,2579.5,2578.9,5.0]
[1646765405213,0.2752,2579.4,2578.9,5.0]
[1646765405615,0.03595496,2579.5,2578.9,5.0]
[1646765405816,13.01750226,2579.5,2578.9,5.0]
[1646765406016,12.0116,2579.2,2578.9,3.30630423]
[1646765406218,12.0116,2579.0,2578.9,3.30630423]
[1646765406416,16.66503993,2579.0,2578.9,3.30630423]
[1646765406616,14.11623993,2579.0,2578.9,2.06170423]
[1646765406817,14.11623993,2579.0,2578.3,0.00229593]
[1646765406818,12.0116,2578.8,2578.3,0.00229593]
[1646765407018,12.0116,2578.4,2577.9,0.01536391]
[1646765407219,12.0116,2578.2,2577.9,0.01536391]
[1646765407617,0.3816,2578.4,2577.9,0.01536391]
[1646765407817,0.3816,2578.4,2577.8,0.0122456]
[1646765407818,0.3,2578.3,2577.8,0.0122456]
[1646765408259,4.69575209,2578.7,2577.8,0.0122456]
[1646765408260,1.352186,2578.2,2577.8,0.0122456]
[1646765408460,0.3816,2578.0,2577.8,0.0122456]
[1646765408661,6.0,2577.8,2576.9,0.05945163]
[1646765408860,6.0,2577.8,2577.0,0.42567679]
[1646765408861,15.5116,2577.7,2577.0,0.42567679]
[1646765409259,13.0116,2577.7,2577.0,0.42567679]
[1646765409460,12.0116,2577.5,2577.0,0.42567679]
[1646765409661,12.6009282,2577.3,2577.0,0.42567679]
[1646765409861,0.97095,2577.2,2576.9,0.0571557]
[1646765410066,4.21277,2578.0,2577.0,0.42511708]
[1646765410263,4.51277,2578.0,2577.0,0.42511708]
[1646765410461,3.5,2577.9,2577.0,0.42511708]
[1646765410663,4.36284736,2578.0,2577.0,0.42511708]
[1646765410865,0.97074,2577.5,2577.0,0.42511708]
[1646765411067,11.63,2577.9,2577.0,0.42511708]
[1646765411068,0.03930416,2578.1,2577.1,0.80280374]
[1646765411265,0.03930416,2578.1,2577.3,0.0043998]
[1646765412314,0.03930416,2578.1,2577.9,0.64841829]
[1646765413316,0.03930416,2578.1,2577.9,2.58855829]
[1646765413714,0.03930416,2578.1,2577.9,2.59260049]
[1646765414817,0.03930416,2578.1,2577.9,2.59664269]
[1646765415017,0.00403998,2579.3,2578.0,6.8496]
[1646765415225,0.00403998,2579.3,2578.1,1.93976]
[1646765415416,0.00403998,2579.3,2578.2,0.468]
[1646765415669,0.00403998,2579.3,2578.2,0.77029593]
[1646765415870,0.00403998,2579.3,2578.2,0.47029593]
[1646765416070,0.00778478,2579.3,2578.8,0.67226992]
[1646765416271,0.0037448,2579.3,2578.8,0.67226992]
[1646765417472,0.00378103,2579.3,2578.8,0.67226992]
[1646765417875,0.00378103,2579.3,2578.8,0.97226992]
[1646765418270,0.004177,2579.6,2578.8,0.97226992]
[1646765418872,0.004177,2579.6,2578.9,0.468]
[1646765419721,0.00152716,2579.4,2578.9,0.468]
[1646765419919,0.00152716,2579.4,2579.0,0.9695]
[1646765420122,0.00152716,2579.4,2579.1,0.468]
[1646765420320,0.00152716,2579.4,2579.0,0.468]
[1646765420531,0.00152716,2579.4,2578.8,1.44026992]
[1646765420923,0.00440147,2579.4,2578.8,1.44026992]
[1646765421120,0.0408,2579.2,2578.8,1.44026992]
[1646765422123,0.0408,2579.2,2578.8,1.14026992]
[1646765422323,0.0408,2579.2,2578.8,0.67226992]
[1646765425270,0.0408,2579.2,2578.8,0.97226992]
[1646765429216,0.0408,2579.2,2578.7,0.00378564]
[1646765429418,0.0408,2579.2,2578.7,0.00761786]
[1646765429718,0.0408,2579.2,2578.7,0.00383222]
[1646765430560,0.0408,2579.2,2578.7,0.00766442]
[1646765430767,1.0109,2579.2,2578.7,0.0038322]
[1646765430965,0.0408,2579.2,2578.7,0.0038322]
[1646765431667,0.0408,2579.2,2578.7,0.0076562]
[1646765431865,0.0408,2579.2,2578.7,0.003824]
[1646765432866,0.0408,2579.2,2578.7,0.00764208]
[1646765433068,12.0524,2579.2,2578.7,0.00381808]
[1646765433375,12.0524,2579.2,2578.3,0.01757053]
[1646765433376,0.00768132,2578.6,2578.3,0.01757053]
[1646765433567,0.00768132,2578.6,2578.3,0.0152746]
[1646765434319,0.00768132,2578.6,2578.3,0.7356748]
[1646765434710,0.00768132,2578.6,2577.8,1.00229593]
[1646765434911,0.00768132,2578.6,2577.9,0.39529694]
[1646765435412,0.00768132,2578.6,2578.1,1.93976]
[1646765435614,0.00768132,2578.6,2578.2,0.86329694]
[1646765435817,0.00768132,2578.6,2578.3,0.39529694]